[Event "Esbjerg Efterår 2021 - Esbjergmesterskabet"]
[Site "Esbjerg, Denmark"]
[Date "2021.10.22"]
[Round "1.1"]
[White "Pedersen, Nicolai Vesterbæk"]
[Black "Schou-Jørgensen, Jan"]
[Result "1-0"]
[TimeControl "1.-3. 20 min + 5 sek, 4.-7. 90 min + 30 sek"]
[WhiteElo "2343"]
[BlackElo "1722"]

1. c4 {[%clk 00:19:57]} {[%emt 00:00:13]} c6 {[%clk 00:19:58]} {[%emt
00:00:12]} 2. d4 {[%clk 00:19:59]} {[%emt 00:00:04]} d5 {[%clk 00:19:51]}
{[%emt 00:00:12]} 3. Nf3 {[%clk 00:20:01]} {[%emt 00:00:03]} Nf6 {[%clk
00:18:56]} {[%emt 00:00:59]} 4. e3 {[%clk 00:19:59]} {[%emt 00:00:07]} Bf5
{[%clk 00:18:13]} {[%emt 00:00:50]} 5. Nc3 {[%clk 00:20:00]} {[%emt 00:00:02]}
e6 {[%clk 00:18:06]} {[%emt 00:00:13]} 6. Nh4 {[%clk 00:20:02]} {[%emt
00:00:02]} Bg6 {[%clk 00:17:52]} {[%emt 00:00:20]} 7. Nxg6 {[%clk 00:19:44]}
{[%emt 00:00:23]} hxg6 {[%clk 00:17:52]} {[%emt 00:00:05]} 8. Bd2 {[%clk
00:19:12]} {[%emt 00:00:37]} Bd6 {[%clk 00:17:03]} {[%emt 00:00:56]} 9. Qb3
{[%clk 00:17:59]} {[%emt 00:01:19]} Qb6 {[%clk 00:15:42]} {[%emt 00:01:25]} 10.
c5 {[%clk 00:17:30]} {[%emt 00:00:33]} Qxb3 {[%clk 00:15:39]} {[%emt 00:00:10]}
11. axb3 {[%clk 00:17:33]} Bc7 {[%clk 00:15:01]} {[%emt 00:00:42]} 12. b4
{[%clk 00:17:30]} {[%emt 00:00:09]} a6 {[%clk 00:12:20]} {[%emt 00:02:46]} 13.
b5 {[%clk 00:16:27]} {[%emt 00:01:08]} O-O {[%clk 00:10:53]} {[%emt 00:01:31]}
14. b6 {[%clk 00:14:56]} {[%emt 00:01:36]} Bd8 {[%clk 00:10:29]} {[%emt
00:00:28]} 15. b4 {[%clk 00:14:33]} {[%emt 00:00:28]} Nbd7 {[%clk 00:09:15]}
{[%emt 00:01:19]} 16. b5 {[%clk 00:14:03]} {[%emt 00:00:36]} cxb5 {[%clk
00:08:01]} {[%emt 00:01:19]} 17. Bxb5 {[%clk 00:14:01]} {[%emt 00:00:07]} Be7
{[%clk 00:07:03]} {[%emt 00:01:03]} 18. Ba4 {[%clk 00:13:25]} {[%emt 00:00:40]}
1-0

[Event "Esbjerg Efterår 2021 - Esbjergmesterskabet"]
[Site "Esbjerg, Denmark"]
[Date "2021.10.22"]
[Round "1.2"]
[White "Dybdal, Frank"]
[Black "Rødgaard, John"]
[Result "0-1"]
[TimeControl "1.-3. 20 min + 5 sek, 4.-7. 90 min + 30 sek"]
[WhiteElo "1687"]
[BlackElo "2319"]

1. c4 {[%clk 00:20:01]} {[%emt 00:00:08]} e6 {[%clk 00:19:44]} {[%emt
00:00:26]} 2. Nc3 {[%clk 00:19:15]} {[%emt 00:00:52]} d5 {[%clk 00:19:14]}
{[%emt 00:00:35]} 3. cxd5 {[%clk 00:18:06]} {[%emt 00:01:14]} exd5 {[%clk
00:19:12]} {[%emt 00:00:06]} 4. d4 {[%clk 00:17:40]} {[%emt 00:00:32]} c6
{[%clk 00:18:46]} {[%emt 00:00:30]} 5. g3 {[%clk 00:16:42]} {[%emt 00:01:04]}
Bf5 {[%clk 00:14:55]} {[%emt 00:03:56]} 6. Bg2 {[%clk 00:15:31]} {[%emt
00:01:16]} Nf6 {[%clk 00:13:24]} {[%emt 00:01:36]} 7. Nf3 {[%clk 00:13:38]}
{[%emt 00:01:58]} Bd6 {[%clk 00:11:58]} {[%emt 00:01:31]} 8. O-O {[%clk
00:13:09]} {[%emt 00:00:35]} O-O {[%clk 00:11:34]} {[%emt 00:00:28]} 9. Nh4
{[%clk 00:08:56]} {[%emt 00:04:18]} Be6 {[%clk 00:07:53]} {[%emt 00:03:47]} 10.
Qc2 {[%clk 00:08:47]} {[%emt 00:00:13]} Nbd7 {[%clk 00:06:18]} {[%emt
00:01:39]} 11. Nf5 {[%clk 00:08:21]} {[%emt 00:00:31]} Bxf5 {[%clk 00:05:59]}
{[%emt 00:00:25]} 12. Qxf5 {[%clk 00:08:21]} {[%emt 00:00:04]} Re8 {[%clk
00:05:26]} {[%emt 00:00:38]} 13. Bg5 {[%clk 00:05:57]} {[%emt 00:02:30]} Qb6
{[%clk 00:04:09]} {[%emt 00:01:22]} 14. e3 {[%clk 00:04:17]} {[%emt 00:01:45]}
h6 {[%clk 00:03:17]} {[%emt 00:00:57]} 15. Bxf6 {[%clk 00:03:50]} {[%emt
00:00:31]} Nxf6 {[%clk 00:03:20]} {[%emt 00:00:03]} 16. Rfc1 {[%clk 00:02:33]}
{[%emt 00:01:22]} Re7 {[%clk 00:02:50]} {[%emt 00:00:34]} 17. Na4 {[%clk
00:01:48]} {[%emt 00:00:51]} Qd8 {[%clk 00:02:01]} {[%emt 00:00:54]} 18. Bf1
{[%clk 00:01:35]} {[%emt 00:00:18]} Re6 {[%clk 00:01:44]} {[%emt 00:00:23]} 19.
Nc5 {[%clk 00:01:10]} {[%emt 00:00:29]} Bxc5 {[%clk 00:01:47]} {[%emt
00:00:02]} 20. Rxc5 {[%clk 00:01:01]} {[%emt 00:00:15]} Qe7 {[%clk 00:01:46]}
{[%emt 00:00:05]} 21. Bd3 {[%clk 00:00:39]} {[%emt 00:00:27]} g6 {[%clk
00:01:47]} {[%emt 00:00:04]} 22. Qf3 {[%clk 00:00:31]} {[%emt 00:00:13]} Kg7
{[%clk 00:01:48]} {[%emt 00:00:04]} 23. Rb1 {[%clk 00:00:22]} {[%emt 00:00:14]}
a5 {[%clk 00:01:25]} {[%emt 00:00:28]} 24. a3 {[%clk 00:00:24]} {[%emt
00:00:03]} a4 {[%clk 00:00:59]} {[%emt 00:00:31]} 25. Qd1 {[%clk 00:00:25]}
{[%emt 00:00:04]} Nd7 {[%clk 00:00:38]} {[%emt 00:00:26]} 26. Rc3 {[%clk
00:00:21]} {[%emt 00:00:08]} Qd8 {[%clk 00:00:35]} {[%emt 00:00:09]} 27. b4
{[%clk 00:00:21]} {[%emt 00:00:06]} axb3 {[%clk 00:00:38]} {[%emt 00:00:02]} 28.
Rcxb3 {[%clk 00:00:24]} b6 {[%clk 00:00:38]} {[%emt 00:00:05]} 29. Qc2 {[%clk
00:00:14]} {[%emt 00:00:15]} Qe7 {[%clk 00:00:39]} {[%emt 00:00:04]} 30. Qb2
{[%clk 00:00:17]} {[%emt 00:00:02]} h5 {[%clk 00:00:41]} {[%emt 00:00:03]} 31.
h4 {[%clk 00:00:20]} {[%emt 00:00:02]} Qd6 {[%clk 00:00:35]} {[%emt 00:00:11]}
32. Rb4 {[%clk 00:00:21]} {[%emt 00:00:03]} Rae8 {[%clk 00:00:38]} {[%emt
00:00:03]} 33. a4 {[%clk 00:00:23]} {[%emt 00:00:04]} Rxe3 {[%clk 00:00:32]}
{[%emt 00:00:10]} 34. fxe3 {[%clk 00:00:26]} {[%emt 00:00:02]} Qxg3+ {[%clk
00:00:36]} 35. Qg2 {[%clk 00:00:30]} {[%emt 00:00:02]} Qxe3+ {[%clk 00:00:39]}
{[%emt 00:00:01]} 36. Kh2 {[%clk 00:00:12]} {[%emt 00:00:23]} Qxd3 {[%clk
00:00:42]} {[%emt 00:00:02]} 37. Rf1 {[%clk 00:00:06]} {[%emt 00:00:12]} Nf6
{[%clk 00:00:29]} {[%emt 00:00:18]} 38. Rb2 {[%clk 00:00:00]} {[%emt 00:00:05]}
Ng4+ {[%clk 00:00:29]} {[%emt 00:00:04]} 0-1

[Event "Esbjerg Efterår 2021 - Esbjergmesterskabet"]
[Site "Esbjerg, Denmark"]
[Date "2021.10.22"]
[Round "1.3"]
[White "Erikkson, Christian Altenburg"]
[Black "Pommerencke, Lars"]
[Result "1-0"]
[TimeControl "1.-3. 20 min + 5 sek, 4.-7. 90 min + 30 sek"]
[WhiteElo "2135"]
[BlackElo "1630"]

1. e4 {[%clk 00:20:04]} {[%emt 00:00:05]} e5 {[%clk 00:19:08]} {[%emt
00:01:03]} 2. Nf3 {[%clk 00:20:04]} {[%emt 00:00:07]} Nc6 {[%clk 00:19:07]}
{[%emt 00:00:04]} 3. d4 {[%clk 00:20:06]} {[%emt 00:00:03]} exd4 {[%clk
00:18:39]} {[%emt 00:00:33]} 4. Nxd4 {[%clk 00:20:08]} {[%emt 00:00:04]} Nxd4
{[%clk 00:18:20]} {[%emt 00:00:23]} 5. Qxd4 {[%clk 00:20:10]} {[%emt 00:00:03]}
Qf6 {[%clk 00:18:07]} {[%emt 00:00:19]} 6. Be3 {[%clk 00:19:48]} {[%emt
00:00:26]} Qxd4 {[%clk 00:17:36]} {[%emt 00:00:36]} 7. Bxd4 {[%clk 00:19:51]}
{[%emt 00:00:02]} f6 {[%clk 00:16:51]} {[%emt 00:00:50]} 8. Nc3 {[%clk
00:19:35]} {[%emt 00:00:21]} c6 {[%clk 00:16:33]} {[%emt 00:00:23]} 9. g3
{[%clk 00:19:03]} {[%emt 00:00:39]} Bb4 {[%clk 00:16:31]} {[%emt 00:00:05]} 10.
a3 {[%clk 00:18:43]} {[%emt 00:00:26]} Ba5 {[%clk 00:16:23]} {[%emt 00:00:14]}
11. Bg2 {[%clk 00:18:19]} {[%emt 00:00:29]} Bb6 {[%clk 00:16:18]} {[%emt
00:00:09]} 12. O-O-O {[%clk 00:17:56]} {[%emt 00:00:29]} Ne7 {[%clk 00:13:23]}
{[%emt 00:02:58]} 13. Rhe1 {[%clk 00:17:12]} {[%emt 00:00:50]} Bxd4 {[%clk
00:13:00]} {[%emt 00:00:28]} 14. Rxd4 {[%clk 00:17:13]} {[%emt 00:00:04]} Ng6
{[%clk 00:12:50]} {[%emt 00:00:14]} 15. f4 {[%clk 00:16:46]} {[%emt 00:00:32]}
O-O {[%clk 00:12:48]} {[%emt 00:00:07]} 16. Rd6 {[%clk 00:16:05]} {[%emt
00:00:46]} Re8 {[%clk 00:12:16]} {[%emt 00:00:38]} 17. Red1 {[%clk 00:16:01]}
{[%emt 00:00:08]} Re7 {[%clk 00:10:46]} {[%emt 00:01:36]} 18. h4 {[%clk
00:14:36]} {[%emt 00:01:30]} b5 {[%clk 00:10:08]} {[%emt 00:00:43]} 19. e5
{[%clk 00:13:32]} {[%emt 00:01:09]} fxe5 {[%clk 00:09:29]} {[%emt 00:00:44]} 20.
f5 {[%clk 00:13:29]} {[%emt 00:00:08]} Nf8 {[%clk 00:09:08]} {[%emt 00:00:26]}
21. Nxb5 {[%clk 00:11:39]} {[%emt 00:01:55]} a5 {[%clk 00:07:20]} {[%emt
00:01:53]} 22. Nc3 {[%clk 00:11:07]} {[%emt 00:00:35]} Ra7 {[%clk 00:07:07]}
{[%emt 00:00:19]} 23. Ne4 {[%clk 00:10:45]} {[%emt 00:00:26]} Ba6 {[%clk
00:06:46]} {[%emt 00:00:27]} 24. Bf3 {[%clk 00:09:09]} {[%emt 00:01:40]} Bc4
{[%clk 00:06:10]} {[%emt 00:00:42]} 25. Nc5 {[%clk 00:07:53]} {[%emt 00:01:21]}
Bf7 {[%clk 00:05:14]} {[%emt 00:01:01]} 26. g4 {[%clk 00:07:40]} {[%emt
00:00:18]} a4 {[%clk 00:04:37]} {[%emt 00:00:43]} 27. g5 {[%clk 00:06:02]}
{[%emt 00:01:42]} Ra5 {[%clk 00:02:59]} {[%emt 00:01:43]} 28. Nxd7 {[%clk
00:05:38]} {[%emt 00:00:29]} Nxd7 {[%clk 00:01:54]} {[%emt 00:01:10]} 29. Rxd7
{[%clk 00:05:38]} {[%emt 00:00:05]} Rxd7 {[%clk 00:01:50]} {[%emt 00:00:09]} 30.
Rxd7 {[%clk 00:05:41]} {[%emt 00:00:02]} Bd5 {[%clk 00:01:42]} {[%emt
00:00:13]} 31. Be2 {[%clk 00:03:05]} {[%emt 00:02:40]} Rc5 {[%clk 00:01:20]}
{[%emt 00:00:27]} 32. Kd2 {[%clk 00:02:53]} {[%emt 00:00:17]} Be4 {[%clk
00:01:08]} {[%emt 00:00:18]} 33. Bd3 {[%clk 00:02:37]} {[%emt 00:00:21]} Bxd3
{[%clk 00:00:59]} {[%emt 00:00:13]} 34. Kxd3 {[%clk 00:02:05]} {[%emt
00:00:37]} Rd5+ {[%clk 00:00:59]} {[%emt 00:00:05]} 35. Rxd5 {[%clk 00:02:08]}
{[%emt 00:00:03]} cxd5 {[%clk 00:00:58]} {[%emt 00:00:06]} 36. b4 {[%clk
00:02:04]} {[%emt 00:00:09]} Kf8 {[%clk 00:00:20]} {[%emt 00:00:43]} 37. c4
{[%clk 00:02:00]} {[%emt 00:00:09]} 1-0

[Event "Esbjerg Efterår 2021 - Esbjergmesterskabet"]
[Site "Esbjerg, Denmark"]
[Date "2021.10.22"]
[Round "1.4"]
[White "Bekmuhanov, Sauran"]
[Black "Bønnelykke, Ole"]
[Result "0-1"]
[TimeControl "1.-3. 20 min + 5 sek, 4.-7. 90 min + 30 sek"]
[WhiteElo "1623"]
[BlackElo "1991"]

1. e4 {[%clk 00:20:09]} c5 {[%clk 00:20:06]} {[%emt 00:00:05]} 2. Nf3 {[%clk
00:20:12]} {[%emt 00:00:02]} e6 {[%clk 00:20:08]} {[%emt 00:00:02]} 3. d4
{[%clk 00:20:16]} {[%emt 00:00:03]} cxd4 {[%clk 00:20:11]} 4. Nxd4 {[%clk
00:20:19]} {[%emt 00:00:02]} a6 {[%clk 00:20:14]} {[%emt 00:00:02]} 5. Nc3
{[%clk 00:20:09]} {[%emt 00:00:15]} Qc7 {[%clk 00:20:17]} {[%emt 00:00:03]} 6.
Be3 {[%clk 00:19:50]} {[%emt 00:00:23]} Nc6 {[%clk 00:20:12]} {[%emt 00:00:10]}
7. f3 {[%clk 00:19:23]} {[%emt 00:00:33]} b5 {[%clk 00:20:08]} {[%emt
00:00:08]} 8. Bd3 {[%clk 00:18:36]} {[%emt 00:00:52]} Bb7 {[%clk 00:19:51]}
{[%emt 00:00:24]} 9. O-O {[%clk 00:18:18]} {[%emt 00:00:22]} Rc8 {[%clk
00:19:43]} {[%emt 00:00:14]} 10. a3 {[%clk 00:17:43]} {[%emt 00:00:40]} Nf6
{[%clk 00:19:40]} {[%emt 00:00:07]} 11. Re1 {[%clk 00:17:41]} {[%emt 00:00:08]}
Nxd4 {[%clk 00:19:14]} {[%emt 00:00:32]} 12. Bxd4 {[%clk 00:17:14]} {[%emt
00:00:30]} Bc5 {[%clk 00:19:13]} {[%emt 00:00:08]} 13. Bxc5 {[%clk 00:16:28]}
{[%emt 00:00:50]} Qxc5+ {[%clk 00:19:14]} {[%emt 00:00:05]} 14. Kf1 {[%clk
00:16:26]} {[%emt 00:00:07]} d5 {[%clk 00:17:55]} {[%emt 00:01:23]} 15. exd5
{[%clk 00:15:34]} {[%emt 00:00:57]} Nxd5 {[%clk 00:17:35]} {[%emt 00:00:25]} 16.
Nxd5 {[%clk 00:14:51]} {[%emt 00:00:49]} Bxd5 {[%clk 00:17:26]} {[%emt
00:00:14]} 17. Qd2 {[%clk 00:13:47]} {[%emt 00:01:08]} O-O {[%clk 00:15:01]}
{[%emt 00:02:30]} 18. Rad1 {[%clk 00:13:18]} {[%emt 00:00:34]} f5 {[%clk
00:13:16]} {[%emt 00:01:49]} 19. Qf2 {[%clk 00:12:55]} {[%emt 00:00:28]} Qc7
{[%clk 00:11:16]} {[%emt 00:02:05]} 20. f4 {[%clk 00:12:16]} {[%emt 00:00:44]}
Be4 {[%clk 00:10:16]} {[%emt 00:01:06]} 21. c3 {[%clk 00:09:38]} {[%emt
00:02:43]} e5 {[%clk 00:08:00]} {[%emt 00:02:18]} 22. Bxe4 {[%clk 00:06:59]}
{[%emt 00:02:44]} fxe4 {[%clk 00:07:58]} {[%emt 00:00:08]} 23. Rxe4 {[%clk
00:07:01]} {[%emt 00:00:03]} exf4 {[%clk 00:05:48]} {[%emt 00:02:16]} 24. Rde1
{[%clk 00:05:41]} {[%emt 00:01:25]} f3 {[%clk 00:04:54]} {[%emt 00:00:59]} 25.
gxf3 {[%clk 00:04:40]} {[%emt 00:01:05]} Qf7 {[%clk 00:04:34]} {[%emt
00:00:23]} 26. Kg2 {[%clk 00:04:06]} {[%emt 00:00:42]} Rc6 {[%clk 00:04:13]}
{[%emt 00:00:25]} 27. Rg4 {[%clk 00:03:19]} {[%emt 00:00:51]} Rf6 {[%clk
00:03:36]} {[%emt 00:00:43]} 28. Rg3 {[%clk 00:03:02]} {[%emt 00:00:22]} Rd8
{[%clk 00:02:50]} {[%emt 00:00:50]} 29. Qc2 {[%clk 00:02:00]} {[%emt 00:01:08]}
Rfd6 {[%clk 00:02:47]} {[%emt 00:00:08]} 30. Re2 {[%clk 00:02:01]} {[%emt
00:00:06]} Rd3 {[%clk 00:02:26]} {[%emt 00:00:25]} 31. f4 {[%clk 00:00:39]}
{[%emt 00:01:27]} Qb7+ {[%clk 00:02:03]} {[%emt 00:00:28]} 32. Kf2 {[%clk
00:00:28]} {[%emt 00:00:17]} Qb6+ {[%clk 00:01:57]} {[%emt 00:00:10]} 33. Kg2
{[%clk 00:00:19]} {[%emt 00:00:14]} Qc6+ {[%clk 00:01:58]} {[%emt 00:00:04]} 34.
Kf2 {[%clk 00:00:21]} {[%emt 00:00:04]} Qc5+ {[%clk 00:02:00]} {[%emt
00:00:02]} 35. Kg2 {[%clk 00:00:18]} {[%emt 00:00:08]} Qd5+ {[%clk 00:01:56]}
{[%emt 00:00:09]} 36. Kf2 {[%emt 00:00:45]} Rd1 {[%emt 00:00:08]} 0-1

[Event "Esbjerg Efterår 2021 - Esbjergmesterskabet"]
[Site "Esbjerg, Denmark"]
[Date "2021.10.22"]
[Round "1.5"]
[White "Mortensen, Henrik"]
[Black "Vinther, Christoffer"]
[Result "1-0"]
[TimeControl "1.-3. 20 min + 5 sek, 4.-7. 90 min + 30 sek"]
[WhiteElo "1991"]
[BlackElo "1607"]

1. d4 {[%clk 00:20:10]} {[%emt 00:23:01]} Nf6 {[%clk 00:20:04]} {[%emt
00:00:06]} 2. Nc3 {[%clk 00:20:13]} {[%emt 00:00:03]} g6 {[%clk 00:20:02]}
{[%emt 00:00:06]} 3. e4 {[%clk 00:20:16]} {[%emt 00:00:04]} d6 {[%clk
00:20:00]} {[%emt 00:00:07]} 4. g3 {[%clk 00:20:18]} {[%emt 00:00:02]} Bg7
{[%clk 00:19:56]} {[%emt 00:00:08]} 5. Bg2 {[%clk 00:20:21]} {[%emt 00:00:04]}
Nc6 {[%clk 00:19:38]} {[%emt 00:00:21]} 6. h3 {[%clk 00:20:22]} {[%emt
00:00:03]} O-O {[%clk 00:19:14]} {[%emt 00:00:29]} 7. Nge2 {[%clk 00:20:25]}
{[%emt 00:00:04]} e5 {[%clk 00:19:02]} {[%emt 00:00:16]} 8. Be3 {[%clk
00:20:22]} {[%emt 00:00:08]} Ne8 {[%clk 00:17:49]} {[%emt 00:01:18]} 9. O-O
{[%clk 00:19:55]} {[%emt 00:00:31]} f5 {[%clk 00:17:25]} {[%emt 00:00:31]} 10.
exf5 {[%clk 00:19:22]} {[%emt 00:00:37]} Bxf5 {[%clk 00:17:16]} {[%emt
00:00:14]} 11. Qd2 {[%clk 00:18:34]} {[%emt 00:00:53]} Qc8 {[%clk 00:16:37]}
{[%emt 00:00:43]} 12. Kh2 {[%clk 00:18:26]} {[%emt 00:00:13]} Nf6 {[%clk
00:15:33]} {[%emt 00:01:10]} 13. Rae1 {[%clk 00:17:17]} {[%emt 00:01:13]} Nb4
{[%clk 00:13:40]} {[%emt 00:01:58]} 14. g4 {[%clk 00:16:08]} {[%emt 00:01:13]}
Be6 {[%clk 00:11:55]} {[%emt 00:01:50]} 15. a3 {[%clk 00:16:06]} {[%emt
00:00:08]} Nbd5 {[%clk 00:11:46]} {[%emt 00:00:14]} 16. Nxd5 {[%clk 00:15:32]}
{[%emt 00:00:39]} Nxd5 {[%clk 00:11:41]} {[%emt 00:00:09]} 17. Bxd5 {[%clk
00:14:49]} {[%emt 00:00:49]} Bxd5 {[%clk 00:11:42]} {[%emt 00:00:04]} 18. dxe5
{[%clk 00:14:45]} {[%emt 00:00:09]} Bxe5+ {[%clk 00:11:29]} {[%emt 00:00:18]}
19. f4 {[%clk 00:14:46]} {[%emt 00:00:04]} Qe6 {[%clk 00:09:54]} {[%emt
00:01:40]} 20. fxe5 {[%clk 00:14:38]} {[%emt 00:00:12]} Qxe5+ {[%clk 00:09:53]}
{[%emt 00:00:06]} 21. Bf4 {[%clk 00:14:12]} {[%emt 00:00:31]} Qe4 {[%clk
00:06:26]} {[%emt 00:03:33]} 22. Nc3 {[%clk 00:13:52]} {[%emt 00:00:26]} 1-0

[Event "Esbjerg Efterår 2021 - Esbjergmesterskabet"]
[Site "Esbjerg, Denmark"]
[Date "2021.10.22"]
[Round "1.6"]
[White "Jensen, Lars"]
[Black "Pedersen, Lars Wiilton"]
[Result "0-1"]
[TimeControl "1.-3. 20 min + 5 sek, 4.-7. 90 min + 30 sek"]
[WhiteElo "1546"]
[BlackElo "1991"]

1. e4 {[%clk 00:20:08]} {[%emt 00:00:01]} d5 {[%clk 00:20:07]} {[%emt
00:00:04]} 2. exd5 {[%clk 00:19:59]} {[%emt 00:00:13]} Nf6 {[%clk 00:20:09]}
{[%emt 00:00:03]} 3. c4 {[%clk 00:19:56]} {[%emt 00:00:10]} e6 {[%clk
00:19:31]} {[%emt 00:00:41]} 4. Nc3 {[%clk 00:19:53]} {[%emt 00:00:09]} exd5
{[%clk 00:19:33]} {[%emt 00:00:02]} 5. cxd5 {[%clk 00:19:55]} {[%emt 00:00:05]}
Nxd5 {[%clk 00:18:46]} {[%emt 00:00:50]} 6. Nf3 {[%clk 00:19:49]} {[%emt
00:00:11]} Be6 {[%clk 00:18:19]} {[%emt 00:00:32]} 7. Be2 {[%clk 00:19:36]}
{[%emt 00:00:17]} Be7 {[%clk 00:18:02]} {[%emt 00:00:22]} 8. O-O {[%clk
00:19:36]} {[%emt 00:00:04]} O-O {[%clk 00:17:46]} {[%emt 00:00:23]} 9. d4
{[%clk 00:19:05]} {[%emt 00:00:36]} Nc6 {[%clk 00:17:44]} {[%emt 00:00:07]} 10.
a3 {[%clk 00:18:30]} {[%emt 00:00:41]} Bf6 {[%clk 00:17:17]} {[%emt 00:00:30]}
11. Be3 {[%clk 00:17:59]} {[%emt 00:00:36]} Re8 {[%clk 00:17:07]} {[%emt
00:00:16]} 12. Rc1 {[%clk 00:17:10]} {[%emt 00:00:54]} Bg4 {[%clk 00:15:48]}
{[%emt 00:01:25]} 13. Qb3 {[%clk 00:15:14]} {[%emt 00:02:02]} Nxe3 {[%clk
00:15:14]} {[%emt 00:00:36]} 14. fxe3 {[%clk 00:15:17]} {[%emt 00:00:02]} Rxe3
{[%clk 00:15:10]} {[%emt 00:00:09]} 15. Bc4 {[%clk 00:11:16]} {[%emt 00:04:06]}
Bxf3 {[%clk 00:14:21]} {[%emt 00:00:54]} 16. Rxf3 {[%clk 00:09:50]} {[%emt
00:01:31]} Rxf3 {[%clk 00:13:48]} {[%emt 00:00:38]} 17. gxf3 {[%clk 00:09:52]}
{[%emt 00:00:04]} Bxd4+ {[%clk 00:09:36]} {[%emt 00:04:17]} 18. Kf1 {[%clk
00:09:48]} {[%emt 00:00:07]} Qf6 {[%clk 00:09:29]} {[%emt 00:00:13]} 19. Bd5
{[%clk 00:08:20]} {[%emt 00:01:32]} Re8 {[%clk 00:07:21]} {[%emt 00:02:13]} 20.
Ne4 {[%clk 00:07:41]} {[%emt 00:00:44]} Qf4 {[%clk 00:07:01]} {[%emt 00:00:24]}
21. Rc2 {[%clk 00:07:18]} {[%emt 00:00:28]} Ne5 {[%clk 00:06:21]} {[%emt
00:00:45]} 22. Kg2 {[%clk 00:06:03]} {[%emt 00:01:20]} c6 {[%clk 00:06:03]}
{[%emt 00:00:24]} 23. Bc4 {[%clk 00:05:25]} {[%emt 00:00:43]} b5 {[%clk
00:04:09]} {[%emt 00:01:59]} 24. Be2 {[%clk 00:05:12]} {[%emt 00:00:18]} h6
{[%clk 00:03:50]} {[%emt 00:00:24]} 25. Ng3 {[%clk 00:03:50]} {[%emt 00:01:27]}
a6 {[%clk 00:03:24]} {[%emt 00:00:31]} 26. Ne4 {[%clk 00:03:47]} {[%emt
00:00:08]} Kh8 {[%clk 00:03:12]} {[%emt 00:00:16]} 27. Ng3 {[%clk 00:03:16]}
{[%emt 00:00:36]} Ng6 {[%clk 00:03:04]} {[%emt 00:00:13]} 28. Qd3 {[%clk
00:02:16]} {[%emt 00:01:05]} c5 {[%clk 00:02:35]} {[%emt 00:00:34]} 29. Kf1
{[%clk 00:01:51]} {[%emt 00:00:30]} Nh4 {[%clk 00:02:18]} {[%emt 00:00:23]} 30.
Qd2 {[%clk 00:01:20]} {[%emt 00:00:36]} Re3 {[%clk 00:02:02]} {[%emt 00:00:20]}
31. Ke1 {[%clk 00:00:39]} {[%emt 00:00:47]} 0-1